fUST/lending_fUST_20250715
["ID","MTS","AMOUNT","RATE_DAILY","PERIOD"]
[372133435,1752533459528,-3206.54,0.000243,7]
[372133437,1752533459538,-736.44,0.000243,7]
[372133439,1752533459547,-1567.00065283,0.00024348,11]
[372133441,1752533459557,-153.0,0.00024356,2]
[372133443,1752533459567,-153.0,0.00024356,2]
[372133445,1752533459577,-153.0,0.00024356,2]
[372133447,1752533459586,-153.0,0.00024356,2]
[372133449,1752533459596,-153.0,0.00024356,2]
[372133450,1752533459607,-153.0,0.00024356,2]
[372133452,1752533459617,-153.0,0.00024356,2]
[372133454,1752533459627,-153.0,0.00024356,2]
[372133456,1752533459636,-153.0,0.00024356,2]
[372133458,1752533459645,-750.0,0.00024364,2]
[372133460,1752533459655,-460.0,0.00024383,3]
[372133461,1752533459665,-460.0,0.00024383,3]
[372133462,1752533459674,-604.15,0.00024383,3]
[372133463,1752533459684,-460.0,0.00024383,3]
[372133464,1752533459693,-460.0,0.00024383,3]
[372133465,1752533459702,-460.0,0.00024383,3]
[372133466,1752533459712,-460.0,0.00024383,3]
[372133467,1752533459721,-751.61,0.00024383,3]
[372133468,1752533459731,-587.13,0.00024383,3]
[372133469,1752533459740,-460.0,0.00024383,3]
[372133471,1752533459750,-831.11,0.00024383,3]
[372133473,1752533459759,-832.44,0.00024383,3]
[372133474,1752533459768,-803.81,0.00024383,3]
[372133475,1752533459777,-460.0,0.00024383,3]
[372133476,1752533459787,-460.0,0.00024383,3]
[372133477,1752533459796,-654.99,0.00024383,3]
[372133478,1752533459805,-570.2,0.00024383,3]
[372133479,1752533459814,-460.0,0.00024383,3]
[372133480,1752533459824,-460.0,0.00024383,3]
[372133481,1752533459834,-3242.26,0.00024383,3]
[372133482,1752533459843,-460.0,0.00024383,3]
[372133483,1752533459852,-460.0,0.00024383,3]
[372133484,1752533459862,-605.83,0.00024383,3]
[372133485,1752533459872,-1100.96,0.00024383,3]
[372133486,1752533459883,-461.72,0.00024383,3]
[372133488,1752533459892,-757.64,0.00024383,3]
[372133490,1752533459901,-496.99364786,0.00024383,3]
[372133492,1752533459911,-2170.58,0.00024383,3]
[372133494,1752533459920,-460.0,0.00024383,3]
[372133496,1752533459930,-675.21,0.00024383,3]
[372133498,1752533459939,-460.0,0.00024383,3]
[372133499,1752533459952,-486.09,0.00024383,3]
[372133502,1752533459975,-3258.61,0.00024383,3]
[372133504,1752533459993,-541.33,0.00024383,3]
[372133507,1752533460017,-1814.97,0.00024383,3]
[372133510,1752533460038,-720.91,0.00024383,3]
[372133513,1752533460073,-5525.87,0.00024383,3]
[372133516,1752533460092,-746.44,0.00024383,3]
[372133519,1752533460110,-460.0,0.00024383,3]
[372133520,1752533460125,-1497.08,0.00024383,3]
[372133521,1752533460144,-1019.17,0.00024383,3]
[372133522,1752533460165,-460.0,0.00024383,3]
[372133523,1752533460179,-573.07,0.00024383,3]
[372133524,1752533460195,-895.64,0.00024383,3]
[372133525,1752533460213,-633.01,0.00024383,3]
[372133526,1752533460232,-727.47,0.00024383,3]
[372133527,1752533460249,-460.0,0.00024383,3]
[372133528,1752533460264,-460.0,0.00024383,3]
[372133529,1752533460279,-2619.08,0.00024383,3]
[372133530,1752533460294,-862.51,0.00024383,3]
[372133531,1752533460309,-460.0,0.00024383,3]
[372133532,1752533460324,-460.0,0.00024383,3]
[372133533,1752533460340,-2300.28,0.00024383,3]
[372133534,1752533460355,-3309.28,0.00024383,3]
[372133535,1752533460370,-576.02,0.00024383,3]
[372133536,1752533460384,-508.59,0.00024383,3]
[372133537,1752533460399,-504.73130644,0.00024383,3]
[372133538,1752533460413,-3133.72,0.00024383,3]
[372133539,1752533460429,-975.59,0.00024383,3]
[372133540,1752533460445,-4974.4,0.00024383,3]
[372133541,1752533460454,-759.28,0.00024383,3]
[372133542,1752533460464,-641.45,0.00024383,3]
[372133543,1752533460473,-669.36,0.00024383,3]
[372133544,1752533460483,-460.0,0.00024383,3]
[372133545,1752533460493,-504.07,0.00024383,3]
[372133546,1752533460503,-1181.0,0.00024383,3]
[372133547,1752533460516,-465.55,0.00024383,3]
[372133548,1752533460525,-1145.72,0.00024383,3]
[372133549,1752533460536,-1158.27,0.00024383,3]
[372133550,1752533460546,-508.69,0.00024383,3]
[372133551,1752533460556,-460.0,0.00024383,3]
[372133552,1752533460566,-460.0,0.00024383,3]
[372133553,1752533460576,-2126.53,0.00024383,3]
[372133554,1752533460586,-556.81,0.00024383,3]
[372133555,1752533460596,-645.14,0.00024383,3]
[372133556,1752533460606,-1966.85,0.00024383,3]
[372133557,1752533460616,-1317.74,0.00024383,3]
[372133558,1752533460626,-3700.94,0.00024383,3]
[372133559,1752533460635,-153.0,0.00024384,2]
[372133560,1752533460645,-153.0,0.00024384,2]
[372133561,1752533460654,-153.0,0.00024384,2]
[372133562,1752533460664,-153.0,0.00024384,2]
[372133563,1752533460891,-153.0,0.00024384,2]
[372133564,1752533460904,-153.0,0.00024384,2]
[372133565,1752533460914,-153.0,0.00024384,2]
[372133566,1752533460924,-153.0,0.00024384,2]
[372133567,1752533460934,-153.0,0.00024384,2]
[372133568,1752533460944,-153.0,0.00024384,2]
[372133569,1752533460954,-153.0,0.00024384,2]
[372133570,1752533460963,-153.0,0.00024384,2]
[372133571,1752533460973,-30640.58,0.000244,2]
[372133572,1752533460982,-151.0,0.000244,7]
[372133573,1752533460991,-324.72754999,0.00024467,2]
[372133574,1752533461001,-22151.28,0.000245,7]
[372133575,1752533461012,-151.0,0.000245,7]
[372133576,1752533461024,-151.239956,0.000245,7]
[372133577,1752533461034,-1567.00065283,0.00024521,11]
[372133578,1752533461067,-151.0,0.00024532,7]
[372133579,1752533461076,-151.0,0.00024532,7]
[372133580,1752533461085,-720.100144,0.00024532,7]
[372133581,1752533461095,-720.100144,0.00024532,7]
[372133582,1752533461104,-193.67,0.00024571,14]
[372133583,1752533461113,-525.46609069,0.000246,7]
[372133584,1752533461122,-151.0,0.00024616,7]
[372133585,1752533461132,-151.0,0.00024616,7]
[372133586,1752533461141,-151.0,0.00024616,7]
[372133587,1752533461150,-151.0,0.00024616,7]
[372133588,1752533461159,-151.0,0.00024616,7]
[372133589,1752533461168,-151.0,0.00024616,7]
[372133590,1752533461177,-151.0,0.00024616,7]
[372133591,1752533461186,-151.0,0.00024616,7]
[372133592,1752533461195,-151.0,0.00024616,7]
[372133593,1752533461204,-151.0,0.00024616,7]
[372133594,1752533461213,-151.0,0.00024616,7]
[372133595,1752533461222,-157.175756,0.00024616,7]
[372133596,1752533461231,-151.0,0.00024616,7]
[372133597,1752533461240,-157.175756,0.00024616,7]
[372133598,1752533461250,-151.0,0.00024616,7]
[372133599,1752533461260,-257.673725,0.00024616,7]
[372133600,1752533461269,-257.673725,0.00024616,7]
[372133601,1752533461278,-191.796788,0.00024616,7]
[372133602,1752533461287,-191.796788,0.00024616,7]
[372133603,1752533461296,-151.0,0.00024616,7]
[372133604,1752533461305,-151.0,0.00024616,7]
[372133605,1752533461314,-151.0,0.00024616,7]
[372133606,1752533461323,-720.100144,0.00024616,7]
[372133607,1752533461331,-151.0,0.00024616,7]
[372133608,1752533461340,-720.100144,0.00024616,7]
[372133609,1752533461349,-151.0,0.00024616,7]
[372133610,1752533461359,-151.0,0.00024616,7]
[372133611,1752533461367,-151.0,0.00024616,7]
[372133612,1752533461376,-151.0,0.00024616,7]
[372133613,1752533461385,-151.0,0.00024616,7]
[372133614,1752533461394,-151.0,0.00024616,7]
[372133615,1752533461403,-266.932146,0.00024616,7]
[372133616,1752533461412,-151.0,0.00024616,7]
[372133617,1752533461421,-151.0,0.00024616,7]
[372133618,1752533461430,-151.0,0.00024616,7]
[372133619,1752533461440,-150000.0,0.00024617,2]
[372133620,1752533461449,-150000.0,0.00024617,2]
[372133621,1752533461458,-150000.0,0.00024617,2]
[372133622,1752533461468,-12261.40618668,0.00024617,2]
[372133623,1752533461483,-429.35548269,0.00024617,2]
[372133624,1752533461590,-48.42479026,0.00024617,2]
[372133625,1752533533014,293.10795132,0.00020677,2]
[372133628,1752533551010,222.616397,0.00013699,2]
[372133657,1752534345107,-369.05150821,0.00019178,2]
[372133669,1752534446093,-296.94849179,0.00019178,2]
[372133670,1752534446114,-152.40841546,0.00019607,2]
[372133671,1752534446135,-500.0,0.00019607,2]
[372133672,1752534446154,-160.0,0.00019727,2]
[372133673,1752534446175,-3000.0,0.000198,2]
[372133674,1752534446196,-1131.0,0.00019809,2]
[372133675,1752534446217,-3000.0,0.0001981,2]
[372133676,1752534446236,-232.0,0.00019817,2]
[372133677,1752534446257,-300.0,0.00019817,2]
[372133678,1752534446277,-300.0,0.00019818,2]
[372133679,1752534446301,-3000.0,0.0001982,2]
[372133680,1752534446322,-3000.0,0.0001983,2]
[372133681,1752534446343,-3000.0,0.0001984,2]
[372133682,1752534446371,-3000.0,0.0001985,2]
[372133683,1752534446398,-560.01040288,0.0001986,2]
[372133684,1752534446451,-562.48154734,0.0001986,2]
[372133689,1752534548182,-228.77758955,0.000189,2]
[372133690,1752534548203,-265.2352074,0.00018918,2]
[372133691,1752534548226,-1877.50804978,0.0001986,2]
[372133692,1752534548247,-3000.0,0.0001987,2]
[372133693,1752534548266,-517.532347,0.00019879,2]
[372133694,1752534548288,-3000.0,0.0001988,2]
[372133695,1752534548316,-300.0,0.00019889,2]
[372133696,1752534548337,-3000.0,0.0001989,2]
[372133697,1752534548359,-3000.0,0.000199,2]
[372133698,1752534548378,-3000.0,0.0001991,2]
[372133699,1752534548401,-355.61963609,0.0001991,2]
[372133700,1752534548421,-3000.0,0.0001992,2]
[372133701,1752534548442,-3000.0,0.0001993,2]
[372133702,1752534548467,-3000.0,0.0001994,2]
[372133703,1752534548507,-3000.0,0.0001995,2]
[372133704,1752534548527,-3000.0,0.0001996,2]
[372133705,1752534548548,-3000.0,0.0001997,2]
[372133706,1752534548568,-3000.0,0.0001998,2]
[372133707,1752534548588,-441.65586982,0.0001999,2]
[372133708,1752534548609,-3000.0,0.0001999,2]
[372133709,1752534548630,-39856.38749423,0.0001999,2]
[372133710,1752534548650,-3000.0,0.0002,2]
[372133711,1752534548670,-3000.0,0.0002001,2]
[372133712,1752534548691,-3000.0,0.0002002,2]
[372133713,1752534548712,-3000.0,0.0002003,2]
[372133714,1752534548732,-3000.0,0.0002004,2]
[372133715,1752534548753,-3000.0,0.0002005,2]
[372133716,1752534548773,-3000.0,0.0002006,2]
[372133717,1752534548793,-4051.899804,0.0002007,2]
[372133718,1752534548814,-222.616397,0.00020187,2]
[372133719,1752534548835,-576.74940012,0.000204,2]
[372133720,1752534548854,-500.0,0.00020473,2]
[372133721,1752534548874,-500.0,0.00020473,2]
[372133722,1752534548894,-500.0,0.00020473,2]
[372133723,1752534548913,-573.10503809,0.00020473,2]
[372133724,1752534548935,-500.0,0.00020473,2]
[372133725,1752534548958,-500.0,0.00020473,2]
[372133726,1752534548982,-180381.91453408,0.000205,2]
[372133727,1752534559107,-12632.09821145,0.000205,2]
[372133728,1752534559234,-5265.24981836,0.000205,2]
[372133974,1752534638411,-382.0,0.00019755,2]
[372133976,1752534638421,-300.0,0.00019755,2]
[372133978,1752534638430,-1280.54148076,0.00019756,2]
[372133979,1752534638445,-12227.92566824,0.00019756,2]
[372133981,1752534638455,-500.0,0.00020473,2]
[372133983,1752534638466,-262.3693145,0.00020473,2]
[372133984,1752534638476,-500.0,0.00020473,2]
[372133985,1752534638487,-500.0,0.00020473,2]
[372133987,1752534638496,-500.0,0.00020473,2]
[372133988,1752534638505,-500.0,0.00020473,2]
[372133989,1752534638515,-500.0,0.00020473,2]
[372133991,1752534638525,-500.0,0.00020473,2]
[372133993,1752534638534,-500.0,0.00020473,2]
[372133995,1752534638544,-81364.12151015,0.000205,2]
[372133996,1752534638555,-6338.58694036,0.000205,2]
[372133997,1752534638571,-165808.85981426,0.000205,2]
[372133999,1752534638582,-533.92,0.000205,2]
[372134001,1752534638591,-18384.35,0.000205,2]
[372134002,1752534638601,-225.00448196,0.00020533,2]
[372134003,1752534638611,-429.033,0.00020658,2]
[372134004,1752534638620,-500.8436141,0.00020773,2]
[372134005,1752534638629,-500.0,0.00020773,2]
[372134006,1752534638639,-500.0,0.00020773,2]
[372134007,1752534638648,-500.0,0.00020773,2]
[372134008,1752534638658,-502.54304723,0.00020773,2]
[372134009,1752534638667,-500.0,0.00020773,2]
[372134010,1752534638676,-158.0317417,0.00020773,2]
[372134011,1752534638686,-500.0,0.00020773,2]
[372134012,1752534638696,-500.0,0.00020773,2]
[372134013,1752534638705,-158.03587871,0.00020773,2]
[372134014,1752534638715,-500.0,0.00020773,2]
[372134015,1752534638724,-500.0,0.00020773,2]
[372134016,1752534638734,-501.13905627,0.00020773,2]
[372134017,1752534638743,-588.12925113,0.00020773,2]
[372134018,1752534638753,-500.0,0.00020773,2]
[372134019,1752534638763,-501.01535338,0.00020773,2]
[372134020,1752534638776,-500.63262251,0.00020773,2]
[372134021,1752534638785,-500.0,0.00020773,2]
[372134022,1752534638795,-500.0,0.00020773,2]
[372134023,1752534638804,-500.0,0.00020773,2]
[372134024,1752534638814,-500.0,0.00020773,2]
[372134025,1752534638823,-500.0,0.00020773,2]
[372134026,1752534638833,-500.0,0.00020773,2]
[372134027,1752534638842,-522.45018301,0.00020773,2]
[372134028,1752534638852,-253897.26040689,0.00020773,2]
[372134029,1752534638861,-2244.58,0.000208,2]
[372134030,1752534638871,-214.33456592,0.00020872,3]
[372134031,1752534638880,-574.56690626,0.000209,4]
[372134032,1752534638890,-3000.0,0.00021,2]
[372134033,1752534638900,-3000.0,0.0002101,2]
[372134034,1752534638910,-3000.0,0.0002102,2]
[372134035,1752534638919,-1000.0,0.00021021,2]
[372134036,1752534638928,-1000.0,0.00021021,2]
[372134037,1752534638938,-1000.0,0.00021021,2]
[372134038,1752534638947,-1000.0,0.00021021,2]
[372134039,1752534638958,-3000.0,0.0002103,2]
[372134040,1752534638968,-3000.0,0.0002104,2]
[372134041,1752534638978,-3000.0,0.0002105,2]
[372134042,1752534638987,-3000.0,0.0002106,2]
[372134043,1752534638997,-3000.0,0.0002107,2]
[372134044,1752534639007,-574.56690603,0.00021072,4]
[372134045,1752534639016,-3000.0,0.0002108,2]
[372134046,1752534639026,-3000.0,0.0002109,2]
[372134047,1752534639036,-3000.0,0.000211,2]
[372134048,1752534639046,-3000.0,0.0002111,2]
[372134049,1752534639055,-3000.0,0.0002112,2]
[372134050,1752534639065,-3000.0,0.0002113,2]
[372134051,1752534639075,-3000.0,0.0002114,2]
[372134052,1752534639085,-3000.0,0.0002115,2]
[372134053,1752534639095,-3000.0,0.0002116,2]
[372134054,1752534639105,-3000.0,0.0002117,2]
[372134055,1752534639114,-3000.0,0.0002118,2]
[372134056,1752534639124,-3000.0,0.0002119,2]
[372134057,1752534639134,-3000.0,0.000212,2]
[372134058,1752534639143,-3000.0,0.0002121,2]
[372134059,1752534639153,-3000.0,0.0002122,2]
[372134060,1752534639163,-800.0,0.0002122,2]
[372134061,1752534639173,-3000.0,0.0002123,2]
[372134062,1752534639183,-3000.0,0.0002124,2]
[372134063,1752534639192,-574.56690603,0.00021245,4]
[372134064,1752534639202,-3000.0,0.0002125,2]
[372134065,1752534639212,-3000.0,0.0002126,2]
[372134066,1752534639222,-3000.0,0.0002127,2]
[372134067,1752534639232,-3000.0,0.0002128,2]
[372134068,1752534639242,-3000.0,0.0002129,2]
[372134069,1752534639252,-3000.0,0.000213,2]
[372134070,1752534639262,-3000.0,0.0002131,2]
[372134071,1752534639273,-3000.0,0.0002132,2]
[372134072,1752534639283,-1000.0,0.00021321,2]
[372134073,1752534639292,-1000.0,0.00021321,2]
[372134074,1752534639302,-1000.0,0.00021321,2]
[372134075,1752534639312,-1000.0,0.00021321,2]
[372134076,1752534639322,-500.0,0.00021321,2]
[372134077,1752534639331,-500.0,0.00021321,2]
[372134078,1752534639341,-1000.0,0.00021321,2]
[372134079,1752534639353,-501.22281008,0.00021321,2]
[372134080,1752534639363,-500.64033782,0.00021321,2]
[372134081,1752534639373,-214.33456592,0.00021324,2]
[372134082,1752534639382,-3000.0,0.0002133,2]
[372134083,1752534639391,-3000.0,0.0002134,2]
[372134084,1752534639401,-3000.0,0.0002135,2]
[372134085,1752534639410,-400.0,0.00021352,2]
[372134086,1752534639420,-3000.0,0.0002136,2]
[372134087,1752534639430,-3000.0,0.0002137,2]
[372134088,1752534639443,-3000.0,0.0002138,2]
[372134089,1752534639453,-576.74940008,0.00021383,2]
[372134090,1752534639462,-3000.0,0.0002139,2]
[372134091,1752534639472,-3000.0,0.000214,2]
[372134092,1752534639482,-3000.0,0.0002141,2]
[372134093,1752534639491,-574.56690603,0.00021417,5]
[372134094,1752534639501,-3000.0,0.0002142,2]
[372134095,1752534639511,-3000.0,0.0002143,2]
[372134096,1752534639522,-3056.805926,0.0002144,2]
[372134097,1752534639532,-420.0,0.00021516,2]
[372134098,1752534639542,-1500.0,0.00021568,2]
[372134099,1752534639551,-1500.0,0.00021568,2]
[372134100,1752534639561,-1500.0,0.00021568,2]
[372134101,1752534639570,-1000.0,0.00021568,2]
[372134102,1752534639579,-574.56690603,0.0002159,5]
[372134103,1752534639589,-574.56690603,0.00021762,5]
[372134104,1752534639599,-18384.35,0.000218,2]
[372134105,1752534639609,-1500.0,0.00021868,2]
[372134106,1752534639619,-1500.0,0.00021868,2]
[372134107,1752534639629,-533.92,0.000219,2]
[372134108,1752534639638,-150.0,0.00021909,2]
[372134109,1752534639648,-150.0,0.00021909,2]
[372134110,1752534639658,-150.0,0.00021909,2]
[372134111,1752534639669,-647.0,0.00021909,2]
[372134112,1752534639684,-2154.0,0.00021909,2]
[372134113,1752534639699,-968.721,0.00021909,2]
[372134114,1752534639709,-460.0,0.00021917,3]
[372134115,1752534639719,-460.0,0.00021917,3]
[372134116,1752534639730,-460.0,0.00021917,3]
[372134117,1752534639740,-232.23016428,0.00021917,3]
[372134118,1752534639750,-460.0,0.00021917,3]
[372134119,1752534639760,-460.0,0.00021917,3]
[372134120,1752534639770,-460.0,0.00021917,3]
[372134122,1752534639782,-460.0,0.00021917,3]
[372134123,1752534639792,-460.0,0.00021917,3]
[372134124,1752534639802,-460.0,0.00021917,3]
[372134125,1752534639812,-460.0,0.00021917,3]
[372134126,1752534639822,-460.0,0.00021917,3]
[372134127,1752534639831,-460.0,0.00021917,3]
[372134128,1752534639842,-460.0,0.00021917,3]
[372134129,1752534639852,-460.0,0.00021917,3]
[372134130,1752534639861,-460.0,0.00021917,3]
[372134131,1752534639871,-460.0,0.00021917,3]
[372134132,1752534639881,-460.0,0.00021917,3]
[372134133,1752534639891,-460.0,0.00021917,3]
[372134134,1752534639901,-460.0,0.00021917,3]
[372134135,1752534639910,-460.0,0.00021917,3]
[372134136,1752534639920,-460.0,0.00021917,3]
[372134137,1752534639930,-460.0,0.00021917,3]
[372134138,1752534639940,-356.92758961,0.00021917,3]
[372134139,1752534639949,-460.0,0.00021917,3]
[372134140,1752534639959,-460.0,0.00021917,3]
[372134141,1752534639969,-460.0,0.00021917,3]
[372134142,1752534639979,-460.0,0.00021917,3]
[372134144,1752534639988,-460.0,0.00021917,3]
[372134146,1752534639999,-460.0,0.00021917,3]
[372134147,1752534640008,-791.35,0.00021917,3]
[372134149,1752534640018,-460.0,0.00021917,3]
[372134150,1752534640028,-460.0,0.00021917,3]
[372134151,1752534640038,-460.0,0.00021917,3]
[372134152,1752534640048,-460.0,0.00021917,3]
[372134153,1752534640058,-460.0,0.00021917,3]
[372134154,1752534640069,-460.0,0.00021917,3]
[372134155,1752534640078,-460.0,0.00021917,3]
[372134156,1752534640088,-460.0,0.00021917,3]
[372134157,1752534640098,-460.0,0.00021917,3]
[372134158,1752534640108,-460.0,0.00021917,3]
[372134159,1752534640118,-460.0,0.00021917,3]
[372134160,1752534640128,-596.20970849,0.00021917,3]
[372134161,1752534640138,-460.0,0.00021917,3]
[372134162,1752534640148,-460.0,0.00021917,3]
[372134163,1752534640158,-460.0,0.00021917,3]
[372134164,1752534640168,-460.0,0.00021917,3]
[372134165,1752534640178,-460.0,0.00021917,3]
[372134166,1752534640188,-460.0,0.00021917,3]
[372134167,1752534640198,-460.0,0.00021917,3]
[372134168,1752534640208,-520.24,0.00021917,3]
[372134169,1752534640219,-460.0,0.00021917,3]
[372134170,1752534640228,-460.0,0.00021917,3]
[372134171,1752534640239,-460.0,0.00021917,3]
[372134172,1752534640249,-460.0,0.00021917,3]
[372134173,1752534640259,-460.0,0.00021917,3]
[372134174,1752534640269,-460.0,0.00021917,3]
[372134175,1752534640279,-460.0,0.00021917,3]
[372134176,1752534640289,-460.0,0.00021917,3]
[372134177,1752534640299,-460.0,0.00021917,3]
[372134178,1752534640308,-460.0,0.00021917,3]
[372134180,1752534640484,-460.0,0.00021917,3]
[372134181,1752534640494,-573.24,0.00021917,3]
[372134182,1752534640503,-460.0,0.00021917,3]
[372134183,1752534640512,-460.0,0.00021917,3]
[372134184,1752534640522,-574.12,0.00021917,3]
[372134185,1752534640532,-460.0,0.00021917,3]
[372134186,1752534640542,-460.0,0.00021917,3]
[372134187,1752534640552,-258.22223661,0.00021917,3]
[372134188,1752534640561,-460.0,0.00021917,3]
[372134189,1752534640570,-460.0,0.00021917,3]
[372134190,1752534640579,-460.0,0.00021917,3]
[372134191,1752534640588,-463.84,0.00021917,3]
[372134192,1752534640598,-460.0,0.00021917,3]
[372134193,1752534640607,-460.0,0.00021917,3]
[372134194,1752534640617,-460.0,0.00021917,3]
[372134195,1752534640626,-555.04,0.00021917,3]
[372134196,1752534640635,-460.0,0.00021917,3]
[372134197,1752534640644,-460.0,0.00021917,3]
[372134198,1752534640654,-460.0,0.00021917,3]
[372134199,1752534640664,-460.0,0.00021917,3]
[372134200,1752534640674,-460.0,0.00021917,3]
[372134201,1752534640683,-460.0,0.00021917,3]
[372134202,1752534640693,-460.0,0.00021917,3]
[372134203,1752534640702,-460.0,0.00021917,3]
[372134204,1752534640712,-460.0,0.00021917,3]
[372134205,1752534640722,-460.0,0.00021917,3]
[372134206,1752534640731,-460.0,0.00021917,3]
[372134207,1752534640742,-460.23505845,0.00021917,3]
[372134208,1752534640752,-460.0,0.00021917,3]
[372134209,1752534640762,-460.0,0.00021917,3]
[372134210,1752534640772,-460.0,0.00021917,3]
[372134211,1752534640782,-460.0,0.00021917,3]
[372134212,1752534640791,-1000.0,0.00021917,3]
[372134213,1752534640801,-3683.91,0.00021917,3]
[372134214,1752534640813,-460.0,0.00021917,3]
[372134215,1752534640822,-460.0,0.00021917,3]
[372134216,1752534640833,-460.0,0.00021917,3]
[372134217,1752534640843,-460.0,0.00021917,3]
[372134218,1752534640854,-460.0,0.00021917,3]
[372134219,1752534640864,-460.0,0.00021917,3]
[372134220,1752534640874,-460.0,0.00021917,3]
[372134221,1752534640884,-263.31835871,0.00021917,3]
[372134222,1752534640894,-196.46573234,0.00021917,3]
[372134223,1752534640906,-460.0,0.00021917,3]
[372134224,1752534640916,-460.0,0.00021917,3]
[372134225,1752534640927,-460.0,0.00021917,3]
[372134226,1752534640937,-460.0,0.00021917,3]
[372134227,1752534640946,-460.0,0.00021917,3]
[372134228,1752534640956,-460.81777929,0.00021917,3]
[372134229,1752534640966,-460.0,0.00021917,3]
[372134230,1752534640975,-460.0,0.00021917,3]
[372134231,1752534640985,-460.0,0.00021917,3]
[372134232,1752534640995,-460.0,0.00021917,3]
[372134233,1752534641004,-460.0,0.00021917,3]
[372134234,1752534641014,-178.58575524,0.00021917,3]
[372134235,1752534641024,-460.0,0.00021917,3]
[372134236,1752534641034,-460.0,0.00021917,3]
[372134237,1752534641043,-460.0,0.00021917,3]
[372134238,1752534641053,-1533.52,0.00021917,3]
[372134239,1752534641063,-460.0,0.00021917,3]
[372134240,1752534641072,-460.0,0.00021917,3]
[372134241,1752534641082,-460.0,0.00021917,3]
[372134242,1752534641092,-318.37654,0.00021917,3]
[372134243,1752534641102,-460.0,0.00021917,3]
[372134244,1752534641111,-733.97,0.00021917,3]
[372134245,1752534641121,-460.0,0.00021917,3]
[372134246,1752534641131,-878.5,0.00021917,3]
[372134247,1752534641140,-460.0,0.00021917,3]
[372134248,1752534641150,-460.0,0.00021917,3]
[372134249,1752534641160,-505.09,0.00021917,3]
[372134250,1752534641169,-460.0,0.00021917,3]
[372134251,1752534641179,-460.0,0.00021917,3]
[372134252,1752534641188,-460.0,0.00021917,3]
[372134253,1752534641198,-460.0,0.00021917,3]
[372134254,1752534641208,-500.81240961,0.00021917,3]
[372134255,1752534641218,-460.0,0.00021917,3]
[372134256,1752534641227,-503.9,0.00021917,3]
[372134257,1752534641237,-460.0,0.00021917,3]
[372134258,1752534641247,-460.0,0.00021917,3]
[372134259,1752534641257,-460.0,0.00021917,3]
[372134260,1752534641267,-460.0,0.00021917,3]
[372134261,1752534641278,-460.0,0.00021917,3]
[372134262,1752534641288,-460.0,0.00021917,3]
[372134263,1752534641298,-460.0,0.00021917,3]
[372134264,1752534641307,-460.0,0.00021917,3]
[372134265,1752534641317,-460.0,0.00021917,3]
[372134266,1752534641327,-460.0,0.00021917,3]
[372134267,1752534641337,-407.80487419,0.00021917,3]
[372134268,1752534641346,-1417.69,0.00021917,3]
[372134269,1752534641356,-2467.3,0.00021917,3]
[372134270,1752534641366,-460.0,0.00021917,3]
[372134271,1752534641376,-460.0,0.00021917,3]
[372134272,1752534641387,-497.63,0.00021917,3]